bitfinex-derivatives/quotes_SOLF0:USTF0_20240815
["timestamp","ask_amount","ask_price","bid_price","bid_amount"]
[1723750161924,0.05246044,138.83,138.75,34.68767576]
[1723750162219,0.05246044,138.83,138.78,31.04]
[1723750162620,0.05246044,138.83,138.78,34.64161197]
[1723750163126,0.05246044,138.83,138.8,31.04]
[1723750163322,0.05246044,138.83,138.82,3.6012]
[1723750163524,0.05246044,138.83,138.82,7.92]
[1723750164223,0.05246044,138.83,138.79,9.2525]
[1723750164428,0.05246044,138.83,138.8,3.6016]
[1723750164723,0.05246044,138.83,138.79,9.2525]
[1723750164930,0.05246044,138.83,138.82,3.6012]
[1723750165125,0.05246044,138.83,138.79,9.2525]
[1723750165622,0.05246044,138.83,138.79,7.92]
[1723750165920,0.05246044,138.83,138.73,5.01854626]
[1723750166116,34.66950185,138.83,138.71,7.92]
[1723750166320,31.04,138.8,138.72,3.61304948]
[1723750166519,31.04,138.8,138.71,7.92]
[1723750166716,1.281,138.82,138.5,31.04]
[1723750166717,31.04,138.74,138.5,31.04]
[1723750166919,31.04,138.74,138.62,31.04]
[1723750167217,1.3562,138.77,138.64,31.04]
[1723750167424,31.04,138.8,138.63,2.5854]
[1723750167614,0.05409629,138.69,138.63,2.5854]
[1723750167823,0.05409629,138.69,138.64,31.04]
[1723750168121,0.05409629,138.69,138.68,3.6049]
[1723750168323,0.05409629,138.69,138.68,11.5449]
[1723750168522,31.04,138.8,138.69,31.04]
[1723750168719,31.04,138.8,138.7,3.68576749]
[1723750168924,31.04,138.8,138.68,7.94]
[1723750169122,5.03620453,138.81,138.65,31.04]
[1723750169326,31.04,138.8,138.68,31.04]
[1723750169521,31.04,138.8,138.72,3.6036]
[1723750169715,31.04,138.8,138.7,3.67078591]
[1723750169917,31.04,138.77,138.26,565.0]
[1723750170121,3.6036,138.73,138.72,0.05225097]
[1723750170821,31.04,138.74,138.65,7.94]
[1723750171020,31.09040817,138.74,138.71,0.0533986]
[1723750171217,31.04,138.72,138.63,1.3543]
[1723750171418,31.04,138.69,138.64,7.94]
[1723750171821,31.04,138.69,138.6,7.94]
[1723750172216,34.6446,138.69,138.64,3.6059]
[1723750172421,31.04,138.69,138.6,7.94]
[1723750173230,0.05275851,138.66,138.6,7.94]
[1723750173626,0.05275851,138.66,138.61,1.2574]
[1723750174130,0.05275851,138.66,138.61,32.2974]
[1723750174331,0.05275851,138.66,138.65,3.6056]
[1723750174832,1.3195,138.75,138.7,3.6043]
[1723750175127,32.3595,138.75,138.67,7.94]
[1723750175317,32.3595,138.75,138.69,3.6045]
[1723750175518,32.3595,138.75,138.67,7.94]
[1723750175924,31.04,138.72,138.61,1.2574]
[1723750176133,31.04,138.7,138.61,1.2574]
[1723750176630,31.04,138.7,138.63,3.6059]
[1723750176832,31.04,138.67,138.64,0.04933942]
[1723750177033,3.6056,138.65,138.64,0.04933942]
[1723750177432,31.04,138.67,138.64,0.04933942]
[1723750177833,0.04952731,138.68,138.64,0.04933942]
[1723750178023,0.04952731,138.68,138.65,3.6055]
[1723750178427,0.04952731,138.68,138.64,0.04933942]
[1723750178627,0.04952731,138.68,138.64,3.65503942]
[1723750178829,0.04952731,138.68,138.64,0.04933942]
[1723750179528,0.04952731,138.68,138.66,3.6053]
[1723750179729,0.04952731,138.68,138.64,0.04933942]
[1723750180233,0.04952731,138.68,138.67,3.6051]
[1723750180433,0.04952731,138.68,138.67,15.10796903]
[1723750181030,0.04952731,138.68,138.67,11.5251]
[1723750181627,1.2545,138.78,138.73,3.6035]
[1723750181825,1.2545,138.78,138.68,1.313]
[1723750182537,34.6422,138.79,138.68,1.313]
[1723750182738,31.04,138.79,138.68,1.313]
[1723750182943,1.242,138.8,138.72,0.04956075]
[1723750182944,0.05342984,138.74,138.72,0.04956075]
[1723750183139,0.05342984,138.74,138.73,3.6036]
[1723750183438,1.3321,138.83,138.73,3.6036]
[1723750183439,0.05127382,138.75,138.73,3.68520774]
[1723750183627,31.04,138.86,138.8,3.6015]
[1723750184226,31.04,138.86,138.77,7.92]
[1723750184830,0.05524315,138.83,138.8,0.05183332]
[1723750185532,0.05524315,138.83,138.82,3.6012]
[1723750186135,0.05524315,138.83,138.8,0.05183332]
[1723750186330,31.04,138.81,138.8,0.05183332]
[1723750186833,0.05524315,138.83,138.8,0.05183332]
[1723750187228,0.05524315,138.83,138.82,3.6012]
[1723750188129,7.92,138.87,138.8,3.73743835]
[1723750188340,7.92,138.87,138.86,3.6002]
[1723750188841,7.92,138.87,138.85,7.92]
[1723750189337,7.92,138.87,138.86,3.6002]
[1723750189529,7.92,138.87,138.85,7.92]
[1723750189739,7.97342496,138.87,138.85,7.97521873]
[1723750190541,7.97342496,138.87,138.86,3.6002]
[1723750192240,7.97342496,138.87,138.86,7.1951317]
[1723750193140,31.04,138.95,138.85,7.97521873]
[1723750193436,31.04,138.93,138.85,0.05521873]
[1723750193641,31.04,138.9,138.83,3.53301839]
[1723750194242,31.04,138.9,138.82,9.2401]
[1723750194744,0.0547897,138.88,138.86,3.6]
[1723750195245,3.5999,138.87,138.85,0.04673571]
[1723750195446,31.0947897,138.88,138.85,0.04673571]
[1723750195742,31.0947897,138.88,138.87,3.5999]
[1723750195946,31.0947897,138.88,138.85,0.04673571]
[1723750196335,31.0947897,138.88,138.86,3.6]
[1723750196544,7.1902,139.06,138.85,0.04673571]
[1723750196733,31.04,138.98,138.85,0.04673571]
[1723750197038,1.3626,138.97,138.85,3.59292935]
[1723750197242,1.3626,138.97,138.84,31.04]
[1723750197433,1.3626,138.97,138.84,34.72797278]
[1723750197635,2.644,138.97,138.84,34.72797278]
[1723750198047,0.05233869,138.92,138.89,0.04585484]
[1723750198232,0.05233869,138.92,138.89,7.96585484]
[1723750199145,0.05233869,138.92,138.9,3.5991]
[1723750199645,0.05233869,138.92,138.89,7.96585484]
[1723750199845,0.05233869,138.92,138.91,3.5989]
[1723750200050,0.05233869,138.92,138.91,7.17675828]
[1723750200642,0.05233869,138.92,138.89,39.00585484]
[1723750200643,0.05233869,138.92,138.89,0.04585484]
[1723750201147,31.04,138.91,138.82,36.72]
[1723750201348,31.04,138.88,138.82,7.92]
[1723750201550,31.04,138.88,138.8,3.60305194]
[1723750201743,1.3171,138.87,138.78,7.92]
[1723750201946,1.3171,138.87,138.78,11.56771931]
[1723750202243,31.04,138.86,138.78,7.92]
[1723750202635,31.04,138.86,138.79,3.6018]
[1723750202843,31.04,138.86,138.78,11.60300821]
[1723750203042,3.6014,138.82,138.78,7.92]
[1723750203243,31.04,138.84,138.75,1.2492]
[1723750203450,0.0523579,138.84,138.81,0.05071649]
[1723750203944,31.04,138.86,138.79,3.59550615]
[1723750204145,31.04,138.86,138.75,1.2492]
[1723750204348,31.04,138.86,138.81,0.05143823]
[1723750204550,0.05230945,138.84,138.81,0.05143823]
[1723750204850,0.05230945,138.84,138.81,3.65273823]
[1723750205238,0.05230945,138.84,138.74,40.2724]
[1723750205551,31.09230945,138.84,138.74,9.2324]
[1723750205847,31.04,138.82,138.73,9.237]
[1723750206047,31.04,138.79,138.73,7.92]
[1723750206250,31.04,138.81,138.75,3.6028]
[1723750206449,31.04,138.81,138.73,7.92]
[1723750206647,31.04,138.81,138.75,0.05280072]
[1723750206648,0.05238002,138.77,138.75,0.05280072]
[1723750208642,0.05238002,138.77,138.76,3.6028]
[1723750208843,0.05238002,138.77,138.75,0.05280072]
[1723750209042,31.09238002,138.77,138.66,31.04]
[1723750209252,31.09238002,138.77,138.65,9.2418]
[1723750209452,31.09238002,138.77,138.67,4.95858443]
[1723750209656,31.09238002,138.77,138.67,1.2821]
[1723750210148,31.04,138.77,138.67,1.2821]
[1723750210349,31.04,138.77,138.67,4.81554598]
[1723750210550,0.04865404,138.73,138.71,0.04655898]
[1723750210746,0.04865404,138.73,138.72,3.6036]
[1723750211251,0.04865404,138.73,138.72,11.5238]
[1723750211545,0.04865404,138.73,138.72,7.92]
[1723750212056,0.04865404,138.73,138.72,11.5238]
[1723750212240,0.04865404,138.73,138.72,7.92]
[1723750212446,0.04865404,138.73,138.72,11.5238]
[1723750212842,0.04865404,138.73,138.71,0.04655898]
[1723750213149,31.04,138.72,138.61,31.04]
[1723750213345,34.6123582,138.72,138.61,7.92]
[1723750213544,31.04,138.7,138.64,3.6057]
[1723750213851,1.3107,138.71,138.65,3.5939761]
[1723750214048,31.04,138.76,138.68,3.6046]
[1723750214247,31.04,138.76,138.65,3.58640984]
[1723750214446,0.04574179,138.73,138.71,0.05518014]
[1723750214955,0.04574179,138.73,138.69,3.6044]
[1723750215151,0.04574179,138.73,138.7,3.6043]
[1723750215351,0.04574179,138.73,138.71,0.04598277]
[1723750216559,0.04574179,138.73,138.71,3.64988277]
[1723750216949,0.04574179,138.73,138.71,0.04598277]
[1723750217648,0.04574179,138.73,138.71,3.64988277]
[1723750218053,0.04574179,138.73,138.71,0.04598277]
[1723750218356,0.04574179,138.73,138.72,3.6038]
[1723750218755,0.04574179,138.73,138.71,0.04598277]
[1723750219249,0.04574179,138.73,138.72,3.6038]
[1723750219947,2.6562,138.83,138.71,31.08598277]
[1723750220154,1.314,138.82,138.71,31.04]
[1723750221257,0.05465831,138.78,138.75,0.0554696]
[1723750221960,31.09465831,138.78,138.75,0.0554696]
[1723750222462,3.6032,138.75,138.67,42.57955556]
[1723750223160,34.62749221,138.76,138.67,3.61955556]
[1723750223349,31.04,138.76,138.66,1.2328]
[1723750223550,3.6034,138.74,138.69,3.6046]
[1723750223755,0.04790813,138.73,138.7,0.04849424]
[1723750224159,0.04790813,138.73,138.72,3.6038]
[1723750225359,1.314,138.82,138.7,7.96849424]
[1723750225559,1.314,138.82,138.71,31.04]
[1723750225865,1.314,138.82,138.79,3.602]
[1723750226072,25.93,138.87,138.8,3.64186087]
[1723750226360,25.93,138.82,138.78,7.92]
[1723750226764,25.93,138.8,138.74,7.92]
[1723750227064,31.99570712,138.87,138.74,7.92]
[1723750227065,25.93,138.83,138.79,0.05351251]
[1723750227466,25.93,138.83,138.74,11.54960841]
[1723750227467,0.05097086,138.78,138.74,11.54960841]
[1723750227664,25.93,138.83,138.8,0.04878584]
[1723750227965,31.13,138.83,138.74,11.54960841]
[1723750228166,3.6015,138.81,138.8,0.05074176]
[1723750228365,31.13,138.8,138.74,7.92]
[1723750228759,31.13,138.83,138.74,7.92]
[1723750228959,31.13,138.83,138.74,3.5588788]
[1723750229263,31.13,138.8,138.7,1.2637]
[1723750229472,31.13,138.78,138.7,4.91911518]
[1723750229769,1.2521,138.79,138.75,3.603]
[1723750229970,4.8543,138.79,138.7,4.94252886]
[1723750230168,0.04839479,138.75,138.73,0.05080849]
[1723750230566,7.1963,138.95,138.74,31.13]
[1723750230864,31.13,138.85,138.75,9.2794]
[1723750231065,31.13,138.88,138.82,3.6011]
[1723750231269,34.73708767,138.88,138.81,3.53902262]
[1723750231570,34.73708767,138.88,138.81,7.92]
[1723750231770,1.2904,138.87,138.81,7.92]
[1723750232067,3.6006,138.85,138.81,7.92]
[1723750232269,31.13,138.83,138.71,31.13]
[1723750232466,31.13,138.83,138.75,7.92]
[1723750232675,31.13,138.83,138.78,3.6023]
[1723750232861,0.04813974,138.86,138.77,31.13]
[1723750233165,0.04813974,138.86,138.81,3.6014]
[1723750233365,31.13,138.88,138.81,3.55919004]
[1723750233565,31.13,138.88,138.78,9.26035681]
[1723750233566,32.3625,138.88,138.78,9.26035681]
[1723750233873,0.05228481,138.85,138.79,7.92]
[1723750234175,0.05228481,138.85,138.82,0.05222467]
[1723750234868,0.05228481,138.85,138.82,3.65617197]
[1723750235165,0.05228481,138.85,138.82,0.05222467]
[1723750235166,31.13,138.84,138.82,0.05222467]
[1723750235360,3.601,138.83,138.82,0.05222467]
[1723750235559,0.05228481,138.85,138.82,0.05222467]
[1723750236971,2.541,138.93,138.83,31.13]
[1723750237161,1.2985,138.93,138.84,7.9]
[1723750237365,1.2985,138.93,138.84,11.47333518]
[1723750237561,1.2985,138.93,138.9,3.599]
[1723750238268,1.34493133,138.93,138.9,3.64670849]
[1723750238570,1.34493133,138.93,138.91,3.5989]
[1723750238765,1.34493133,138.93,138.9,0.04770849]
[1723750238972,0.04643133,138.93,138.9,0.04770849]
[1723750239662,0.04643133,138.93,138.92,3.5986]
[1723750240068,31.13,139.01,138.92,3.5986]
[1723750240069,1.3244,139.02,138.92,31.13]
[1723750240270,1.3244,139.02,138.92,34.68271673]
[1723750240665,1.3244,139.02,138.94,31.13]
[1723750240976,1.3302,139.06,138.94,31.13]
[1723750241270,1.3244,139.09,138.99,31.13]
[1723750241578,1.2709,139.11,139.01,31.13]
[1723750241771,1.2314,139.12,139.07,3.5946]
[1723750241972,1.2314,139.12,139.06,7.9]
[1723750242279,31.13,139.12,139.02,1.2386]
[1723750242477,31.13,139.12,139.03,7.9]
[1723750242667,3.5939,139.11,139.05,3.5952]
[1723750242869,0.05221678,139.11,139.03,7.9]
[1723750243079,0.05221678,139.11,139.03,39.03]
[1723750243368,0.05221678,139.11,139.1,3.594]
[1723750243574,0.05221678,139.11,139.1,11.494]
[1723750243771,2.6709,139.2,139.15,3.5927]
[1723750243967,2.6709,139.2,139.11,3.51075361]
[1723750244169,2.6709,139.2,139.08,31.13]
[1723750244373,3.5922,139.17,139.09,7.9]
[1723750244968,3.5922,139.17,139.11,3.5935]
[1723750245168,0.05420955,139.14,139.12,0.04767944]
[1723750246475,31.18420955,139.14,139.12,0.04767944]
[1723750246872,3.5932,139.13,139.12,0.04767944]
[1723750247375,31.18420955,139.14,139.02,1.2386]
[1723750247677,31.18420955,139.14,139.02,2.4925]
[1723750247870,3.5933,139.13,139.02,2.4925]
[1723750248072,31.13,139.16,139.03,31.13]
[1723750248376,31.13,139.16,139.1,3.5939]
[1723750248576,3.5927,139.15,139.1,3.5939]
[1723750248766,0.05547523,139.11,139.08,11.58079638]
[1723750248972,31.13,139.16,139.08,7.9]
[1723750249272,0.05178317,139.11,139.08,7.95200779]
[1723750249481,2.6709,139.2,139.08,42.73025699]
[1723750249667,6.2625,139.2,139.1,31.13]
[1723750249873,2.6709,139.2,139.1,31.13]
[1723750250372,291.77897993,139.27,139.12,31.13]
[1723750250373,31.13,139.24,139.12,31.13]
[1723750250566,31.13,139.26,139.13,1.2655]
[1723750250776,31.13,139.26,139.15,31.13]
[1723750250975,0.04865733,139.19,139.17,0.04627781]
[1723750251277,34.72,139.26,139.17,3.65928125]
[1723750251478,2.5663,139.27,139.22,3.5908]
[1723750251677,0.05267659,139.19,139.17,3.58354473]
[1723750251879,0.05267659,139.19,139.15,31.13]
[1723750252081,31.13,139.26,139.17,0.05076519]
[1723750252375,0.04532202,139.18,139.17,31.18076519]
[1723750252580,1.2843,139.27,139.23,3.5906]
[1723750252778,3.5892,139.29,139.21,7.9]
[1723750253083,32.3818,139.31,139.21,7.9]
[1723750253485,3.5895,139.28,139.21,7.9]
[1723750253679,32.3818,139.31,139.24,3.5903]
[1723750253881,0.05046858,139.27,139.25,0.05279722]
[1723750254776,0.05046858,139.27,139.26,3.5898]
[1723750255581,1.3447,139.36,139.25,0.05279722]
[1723750255782,3.5883,139.32,139.25,0.05279722]
[1723750256078,1.3447,139.36,139.29,3.5891]
[1723750256278,3.5878,139.34,139.29,3.5891]
[1723750256584,1.3447,139.36,139.29,3.5891]
[1723750256585,1.3447,139.36,139.29,3.589]
[1723750256772,0.04885034,139.33,139.3,0.05288777]
[1723750257172,0.04885034,139.33,139.32,3.5883]
[1723750257578,0.04885034,139.33,139.31,3.5885]
[1723750257779,0.04885034,139.33,139.3,0.05288777]
[1723750259077,0.04885034,139.33,139.32,3.5883]
[1723750259477,0.04885034,139.33,139.3,0.05288777]
[1723750259983,0.04885034,139.33,139.32,3.5883]
[1723750260892,0.04885034,139.33,139.3,0.05288777]
[1723750261187,0.04885034,139.33,139.31,7.88]
[1723750261685,0.04885034,139.33,139.31,39.01]
[1723750261889,0.04885034,139.33,139.31,42.5985]
[1723750262179,0.04885034,139.33,139.31,11.4685]
[1723750262379,0.04885034,139.33,139.3,0.05288777]
[1723750262589,3.5886,139.31,139.3,0.05288777]
[1723750263187,0.04885034,139.33,139.3,0.05288777]
[1723750264187,3.5886,139.31,139.3,0.05288777]
[1723750264482,0.04885034,139.33,139.3,0.05288777]
[1723750266077,0.04885034,139.33,139.31,3.5884]
[1723750266383,0.04885034,139.33,139.32,3.67235477]
[1723750266887,228.0,139.48,139.31,31.13]
[1723750267081,31.13,139.45,139.33,31.13]
[1723750267283,31.13,139.45,139.35,3.5873]
[1723750267587,31.13,139.45,139.33,31.13]
[1723750267781,3.9193,139.47,139.33,31.13]
[1723750267990,6.1963,139.47,139.38,31.13]
[1723750268183,0.05330326,139.4,139.39,7.88]
[1723750268377,4.847,139.47,139.39,7.88]
[1723750268583,4.847,139.47,139.39,9.1946]
[1723750268584,1.2625,139.47,139.39,9.1946]
[1723750268779,31.13,139.51,139.4,31.13]
[1723750268990,2.6933,139.53,139.42,31.13]
[1723750269484,3.5836,139.51,139.42,31.13]
[1723750269689,2.6933,139.53,139.42,31.13]
[1723750269893,1.3508,139.53,139.42,31.13]
[1723750270078,4.9339,139.53,139.42,31.13]
[1723750270284,1.3508,139.53,139.42,31.13]
[1723750270688,2.6023,139.58,139.47,31.13]
[1723750270883,0.052312,139.49,139.48,7.88]
[1723750271193,0.052312,139.49,139.48,11.4642]
[1723750271388,33.7323,139.58,139.48,11.42295557]
[1723750271796,33.7323,139.58,139.52,3.5829]
[1723750271797,3.5819,139.57,139.52,3.5829]
[1723750272085,2.6023,139.58,139.48,11.42295557]
[1723750272291,3.5819,139.57,139.51,3.5832]
[1723750272487,2.6023,139.58,139.48,11.42295557]
[1723750272685,31.13,139.55,139.48,7.86]
[1723750272985,31.13,139.5,139.39,31.13]
[1723750273188,31.13,139.42,139.31,31.13]
[1723750273382,7.86,139.41,139.32,3.58376948]
[1723750273582,7.86,139.41,139.33,3.49559993]
[1723750273785,31.13,139.42,139.31,31.13]
[1723750273786,11.4464,139.4,139.34,3.5877]
[1723750273987,31.13,139.4,139.28,31.13]
[1723750274193,0.05491852,139.38,139.36,0.05450867]
[1723750274899,0.05491852,139.38,139.34,3.5877]
[1723750275092,0.05491852,139.38,139.33,31.13]
[1723750275282,0.05491852,139.38,139.33,34.69441519]
[1723750275482,0.05491852,139.38,139.36,0.04925756]
[1723750275789,3.64191852,139.38,139.36,0.04925756]
[1723750275995,0.05491852,139.38,139.36,0.04925756]
[1723750276580,0.05491852,139.38,139.36,31.17925756]
[1723750276791,3.838,139.49,139.37,7.86]
[1723750276792,3.5848,139.46,139.37,7.86]
[1723750276988,3.838,139.49,139.38,31.13]
[1723750277186,2.5667,139.49,139.4,31.13]
[1723750277389,31.13,139.55,139.42,31.13]
[1723750277686,1.2805,139.56,139.45,31.13]
[1723750277894,1.2805,139.56,139.47,31.13]
[1723750278096,1.2805,139.56,139.48,7.86]
[1723750278282,1.3476,139.63,139.49,31.13]
[1723750278686,3.5818,139.58,139.53,3.5827]
[1723750278887,3.5818,139.58,139.54,7.86]
[1723750279390,31.13,139.61,139.54,7.86]
[1723750279691,31.13,139.58,139.5,0.05417692]
[1723750279896,31.13,139.58,139.51,7.86]
[1723750280085,31.13,139.58,139.47,31.13]
[1723750280086,0.05113938,139.57,139.47,31.13]
[1723750280286,0.05113938,139.57,139.48,7.86]
[1723750280594,0.05113938,139.57,139.5,3.5834]
[1723750280790,1.2805,139.62,139.53,0.05113747]
[1723750281190,31.13,139.6,139.53,0.05113747]
[1723750281390,0.05013193,139.55,139.53,0.05113747]
[1723750281694,0.05013193,139.55,139.49,42.54106012]
[1723750282086,0.05013193,139.55,139.53,3.5827]
[1723750282398,1.2805,139.62,139.55,0.04787097]
[1723750283098,1.2805,139.62,139.54,3.5826]
[1723750283099,3.5813,139.6,139.53,7.86]
[1723750283287,3.62895769,139.6,139.55,3.5822]
[1723750283490,0.04765769,139.6,139.53,7.86]
[1723750283691,3.5814,139.59,139.57,0.05042492]
[1723750283898,0.04765769,139.6,139.57,0.05042492]
[1723750284096,3.5814,139.59,139.57,0.05042492]
[1723750284699,3.5814,139.59,139.51,31.13]
[1723750284700,31.17765769,139.6,139.51,7.86]
[1723750284894,31.17765769,139.6,139.52,3.583]
[1723750285091,31.17765769,139.6,139.5,7.86]
[1723750285298,3.5821,139.56,139.51,7.86]
[1723750285500,31.13,139.6,139.51,3.5832]
[1723750286096,0.05098489,139.57,139.54,0.05065819]
[1723750286609,96.12067917,139.65,139.55,7.86]
[1723750286798,3.5808,139.62,139.55,7.86]
[1723750287000,2.5469,139.66,139.56,31.13]
[1723750287192,2.5469,139.66,139.58,31.13]
[1723750287403,3.5801,139.64,139.58,31.13]
[1723750287699,1.2672,139.66,139.58,31.13]
[1723750287902,0.05132136,139.62,139.6,0.04830573]
[1723750288097,0.05132136,139.62,139.6,3.62920573]
[1723750288395,0.05132136,139.62,139.61,7.86]
[1723750288591,0.05132136,139.62,139.61,11.4408]
[1723750289701,4.8461,139.69,139.65,3.5798]
[1723750289902,3.5789,139.69,139.65,3.5798]
[1723750290293,32.4332,139.72,139.61,7.86]
[1723750290501,31.13,139.65,139.53,31.13]
[1723750290692,31.13,139.65,139.44,7.17]
[1723750290693,31.13,139.63,139.51,31.13]
[1723750291093,0.03579381,139.6,139.58,0.05446226]
[1723750291294,3.5814,139.59,139.58,0.05446226]
[1723750292500,0.03579381,139.6,139.58,0.05446226]
[1723750293202,0.03579381,139.6,139.59,31.13]
[1723750293398,3.5786,139.7,139.59,31.13]
[1723750293602,1.3032,139.72,139.57,1.255]
[1723750293603,1.363,139.77,139.63,31.13]
[1723750293812,4.0164,139.77,139.63,38.99]
[1723750294116,7.51726781,139.77,139.66,31.13]
[1723750294505,7.51726781,139.77,139.67,3.5792]
[1723750294697,7.51726781,139.77,139.66,31.13]
[1723750294903,7.51726781,139.77,139.7,0.04810447]
[1723750295108,3.578,139.73,139.7,0.04810447]
[1723750295305,7.51726781,139.77,139.7,0.04810447]
[1723750295810,3.5782,139.72,139.7,0.04810447]
[1723750296011,7.51726781,139.77,139.7,0.04810447]
[1723750296204,3.5778,139.73,139.7,0.04810447]
[1723750296402,4.0164,139.77,139.7,0.04810447]
[1723750296601,2.6534,139.77,139.7,0.04810447]
[1723750297407,31.13,139.75,139.7,0.04810447]
[1723750297710,31.13,139.75,139.63,31.13]
[1723750297711,31.13,139.75,139.63,38.99]
[1723750298011,7.86,139.76,139.66,31.13]
[1723750298607,3.578,139.73,139.68,3.579]
[1723750298910,7.86,139.76,139.63,31.13]
[1723750299109,31.13,139.73,139.63,31.13]
[1723750299406,31.13,139.73,139.61,7.86]
[1723750299407,31.13,139.71,139.69,0.05026579]
[1723750299604,34.69662261,139.71,139.61,38.99]
[1723750299804,34.69662261,139.71,139.59,1.3023]
[1723750300403,34.69662261,139.71,139.56,31.13]
[1723750300404,31.13,139.69,139.56,31.13]
[1723750300607,31.13,139.66,139.54,38.97]
[1723750300907,31.13,139.67,139.59,3.5813]
[1723750301104,0.0476553,139.64,139.61,0.04875573]
[1723750301310,3.5805,139.63,139.61,0.04875573]
[1723750301510,0.0476553,139.64,139.61,0.04875573]
[1723750302307,3.5813,139.6,139.55,3.5822]
[1723750302607,34.78116081,139.64,139.51,38.97]
[1723750303004,34.73350551,139.64,139.51,38.97]
[1723750303209,31.13,139.64,139.54,31.13]
[1723750303408,3.581,139.61,139.54,31.13]
[1723750303607,7.84,139.66,139.58,0.05287448]
[1723750303912,2.5114,139.68,139.58,0.05287448]
[1723750303913,3.5798,139.65,139.6,3.5809]
[1723750304210,0.05288003,139.63,139.58,0.05287448]
[1723750304408,0.05288003,139.63,139.56,31.13]
[1723750304409,0.05288003,139.63,139.56,34.79867872]
[1723750304606,0.05288003,139.63,139.61,3.5807]
[1723750304802,0.05288003,139.63,139.59,0.05298573]
[1723750305307,3.5811,139.6,139.59,0.05298573]
[1723750306312,31.13,139.6,139.49,7.86]
[1723750306510,1.2904,139.59,139.49,7.86]
[1723750306700,3.5819,139.57,139.49,7.86]
[1723750306905,1.2904,139.59,139.51,31.13]
[1723750307101,1.2904,139.59,139.55,3.5822]
[1723750307406,3.5814,139.59,139.55,3.5822]
[1723750307611,9.1726,139.63,139.53,31.13]
[1723750307815,0.04610364,139.58,139.56,3.63538726]
[1723750308308,0.04610364,139.58,139.57,3.5819]
[1723750308502,1.3126,139.63,139.56,0.05338726]
[1723750308707,31.13,139.69,139.57,31.13]
[1723750308906,1.3126,139.69,139.57,31.13]
[1723750309106,0.05005202,139.61,139.57,31.13]
[1723750309412,7.20885415,139.61,139.57,34.7117]
[1723750309615,0.04978079,139.6,139.58,0.04906227]
[1723750310110,3.63088079,139.6,139.58,0.04906227]
[1723750310305,0.04978079,139.6,139.58,0.04906227]
[1723750310616,3.63098079,139.6,139.58,0.04906227]
[1723750310810,0.04978079,139.6,139.58,0.04906227]
[1723750311109,0.04978079,139.6,139.58,3.63056227]
[1723750311317,0.04978079,139.6,139.58,0.04906227]
[1723750311811,3.63108079,139.6,139.58,0.04906227]
[1723750312015,0.04978079,139.6,139.58,0.04906227]
[1723750312212,3.5814,139.59,139.58,0.04906227]
[1723750315012,0.04978079,139.6,139.58,0.04906227]
[1723750315604,0.04978079,139.6,139.59,3.5814]
[1723750315911,0.04978079,139.6,139.58,0.04906227]
[1723750316303,0.04978079,139.6,139.48,32.3931]
[1723750316612,31.17978079,139.6,139.48,33.6868]
[1723750316821,31.13,139.57,139.35,38.3048]
[1723750317113,31.13,139.55,139.46,3.5846]
[1723750317317,1.3618,139.54,139.43,14.07588342]
[1723750317517,1.3618,139.54,139.43,14.04615944]
[1723750317717,0.04523465,139.52,139.49,0.05247314]
[1723750318623,3.61927433,139.52,139.49,0.05247314]
[1723750318815,7.90523465,139.52,139.49,0.05247314]
[1723750319007,3.5845,139.47,139.42,3.5856]
[1723750319207,7.90523465,139.52,139.4,34.72237049]
[1723750319412,11.45452075,139.52,139.4,34.72237049]
[1723750319618,11.45452075,139.52,139.42,31.13]
[1723750319920,11.45452075,139.52,139.38,7.86]